Cogmind - Beta 14 @@@ ROGUE MODE // 2024.09.08 @ 09:22:42 Player: rice Result: Self-destructed Performance ------------- Evolutions (1) 500 Regions Visited (2) 400 Robots Destroyed (16) 80 Value Destroyed (458) 458 Prototype IDs (1) 20 Alien Tech Used (0) 0 Bonus (0) 0 TOTAL SCORE: 1458 Bonus ------- None Cogmind --------- Core Integrity 271/400 Matter 219/300 Energy 250/250 System Corruption 0% Temperature Cool (0) Movement Core (500) Ox9 Location -9/Materials Parts ------- > --- POWER (1) -------- Ion Engine > --- PROPULSION (2) --- (None) > --- UTILITY (4) ------ Large Storage Unit Improved Targeting Computer ECM Suite > --- WEAPON (2) ------- Improved Assault Rifle > --- INVENTORY (15) --- Light Ion Engine Light Treads Light Treads Aluminum Leg Aluminum Leg Large Storage Unit Light Assault Rifle Light Assault Rifle Autogun Autogun Mining Laser Peak State ------------ > --- POWER ------------ Ion Engine > --- PROPULSION ------- Light Treads Improved Treads > --- UTILITY ---------- Heat Sink Large Storage Unit Improved Targeting Computer ECM Suite > --- WEAPON ----------- Autogun Autogun > --- INVENTORY -------- Light Ion Engine Light Treads Light Treads Aluminum Leg Aluminum Leg Large Storage Unit Light Assault Rifle Light Assault Rifle Autogun Autogun Mining Laser [Rating: 14] Favorites ----------- Power Ion Engine Engine Ion Engine Propulsion Light Treads Treads Light Treads Utility Large Storage Unit Device ECM Suite Storage Large Storage Unit Processor Improved Targeting Computer Weapon Autogun Ballistic Gun Autogun Build | -11 -10 -9 ------- Run | Yrd Mat Mat Slots Evolved 2 | . . 2 Power . | . . . Propulsion . | . . . Utility 2 | . . 2 Weapon . | . . . Parts Attached 17 | 7 4 6 Power 3 | 2 . 1 Engine 3 | 2 . 1 Core . | . . . Reactor . | . . . Propulsion 4 | 2 . 2 Treads 4 | 2 . 2 Leg . | . . . Wheel . | . . . Hover . | . . . Flight . | . . . Utility 5 | 1 2 2 Device 2 | . . 2 Storage 2 | 1 1 . Processor 1 | . 1 . Hackware . | . . . Protection . | . . . Artifact . | . . . Weapon 5 | 2 2 1 Energy Gun . | . . . Energy Cannon . | . . . Ballistic Gun 5 | 2 2 1 Ballistic Cannon . | . . . Launcher . | . . . Special Weapon . | . . . Impact Weapon . | . . . Slashing Weapon . | . . . Piercing Weapon . | . . . Special Melee Weapon . | . . . Unidentified Prototypes 1 | . . 1 Parts Lost 4 | . . 4 Power . | . . . Propulsion 2 | . . 2 Utility 1 | . . 1 Weapon 1 | . . 1 Highest Loss Streak 4 | . . 4 To Critical Strikes 1 | . . 1 Average Slot Usage (%) 94 | . 95 93 Engine 12 | . 14 11 Treads 25 | . 28 21 Device 7 | . . 16 Storage 12 | . 14 11 Processor 10 | . 9 11 Ballistic Gun 25 | . 28 21 Peak Build Rating 14 | 6 11 14 Average Rating 10 | 4 9 13 On Entrance 5 | . 6 11 Naked Turns . | . . . Heaviest Build 34 | 12 31 34 Greatest Support 43 | 40 40 43 Greatest Overweight (x) 1 | . . 1 Average Overweight (x) . | . . . Largest Inventory Capacity 15 | 8 15 15 Average Capacity 13 | 7 13 15 Most Carried 11 | 3 11 11 Average Carried 8 | 2 8 10 Final Capacity 15 | 8 15 15 Final Carried 11 | 3 11 11 Class Distribution -------------------- 100% | Mutant Dominant Class ---------------- Mutant | -10/Materials Mutant | -9/Materials Resources | -11 -10 -9 ----------- Run | Yrd Mat Mat Matter Collected 592 | 206 167 219 Remotely . | . . . Salvage Created 624 | . 202 422 Parts 43 | . 11 32 Haulers Intercepted 2 | . 1 1 Recyclers Shooed . | . . . Parts Field Recycled . | . . . Retrieved Matter . | . . . Parts Self-Destructed . | . . . Prevented . | . . . Kills | -11 -10 -9 ------- Run | Yrd Mat Mat Combat Hostiles Destroyed 13 | . 4 9 Guns 13 | . 4 9 Classes Destroyed 5 | . 2 3 Hauler 2 | . 1 1 Watcher 1 | . . 1 Swarmer 2 | . . 2 Grunt 10 | . 4 6 Sentry 1 | . . 1 Best Kill Streak 3 | . 2 3 Combat Bots Only 3 | . 2 3 Max Kills in Single Turn 1 | . 1 1 Gunslinging . | . . . Exploded . | . . . Melee . | . . . Uniques/NPCs Destroyed . | . . . Combat | -11 -10 -9 -------- Run | Yrd Mat Mat Hostile Shots Fired 90 | . 9 81 Missed 25 | . 3 22 Damage Taken 730 | . 74 656 Core 129 | . . 129 Absorbed by Shields . | . . . Core Remaining (%) 100 | 100 100 . Volleys Fired 43 | . 10 33 Largest 2 | . 2 2 Hottest 46 | . 46 46 Shots Fired 84 | . 20 64 Gun 84 | . 20 64 Cannon . | . . . Launcher . | . . . Special . | . . . Kinetic 84 | . 20 64 Thermal . | . . . Explosive . | . . . Electromagnetic . | . . . Robot Hit Streak 9 | . 6 9 Robot Miss Streak 4 | . 1 4 Penetration Max . | . . . Secondary Targets 1 | . . 1 Max Gunslinging Chain 1 | . . 1 Shots Hit Robots 53 | . 16 37 Core Hits 21 | . 6 15 Critical Kills . | . . . Critical Parts Destroyed . | . . . Critical Strikes . | . . . Melee Attacks . | . . . Impact . | . . . Slashing . | . . . Piercing . | . . . Sneak Attacks . | . . . Combat Hostiles . | . . . Follow-up Attacks . | . . . Damage Inflicted 852 | . 235 617 Guns 846 | . 231 615 Cannons . | . . . Explosions . | . . . Melee . | . . . Ramming 6 | . 4 2 Kinetic 846 | . 231 615 Thermal . | . . . Explosive . | . . . Electromagnetic . | . . . Impact . | . . . Slashing . | . . . Piercing . | . . . Highest Corruption . | . . . Average Corruption . | . . . Corruption Purged . | . . . Corruption Blocked . | . . . Overload Shots . | . . . Overflow Damage . | . . . Projectiles . | . . . Explosions . | . . . Melee . | . . . Knockbacks . | . . . Impact . | . . . Kinetic . | . . . Secondary . | . . . Self-Inflicted Damage . | . . . Shots . | . . . Rammed 1 | . . 1 Targets Rammed 2 | . 1 1 Kicked . | . . . Crushed 1 | . 1 . Highest Temperature 24 | . 24 9 Average Temperature 9 | . 10 6 Received Heat Transfer 264 | . 42 222 Siege Activations . | . . . Robots Corrupted . | . . . Combat Hostiles . | . . . Parts Fried . | . . . Impact Corruptions . | . . . Robots Melted . | . . . Combat Hostiles . | . . . Parts Melted . | . . . Heat Transferred . | . . . Parts Sabotaged . | . . . Parts Stolen . | . . . Parts Stripped . | . . . Power Chain Reactions . | . . . Alert | -11 -10 -9 ------- Run | Yrd Mat Mat Peak Influence 302 | . 80 302 Initial 33 | . . 33 Average 56 | . 13 133 Maximum Alert Level 1 | . . 1 Low Security (%) 90 | 100 100 75 Level 1 9 | . . 24 Level 2 . | . . . Level 3 . | . . . Level 4 . | . . . Level 5 . | . . . High Security . | . . . Max Security . | . . . Squads Dispatched 3 | . 1 2 Investigation 1 | . . 1 Extermination . | . . . Reinforcement 2 | . 1 1 Assault . | . . . Garrison . | . . . Intercept . | . . . Searches Triggered . | . . . Construction Impeded . | . . . Haulers Reinforced . | . . . Active Scanning Responses . | . . . Cargo Convoy Interrupts . | . . . Stealth | -11 -10 -9 --------- Run | Yrd Mat Mat Distress Signals 3 | . 1 2 Communications Jammed . | . . . Distress Signals . | . . . Times Spotted 33 | . 8 25 Peak Tracking Total 6 | . 6 6 Tactical Retreats 6 | . 1 5 Traps | -11 -10 -9 ------- Run | Yrd Mat Mat Traps Triggered 1 | . . 1 Indirectly . | . . . Trap Hack Attempts . | . . . Triggered . | . . . Disarmed . | . . . Reprogrammed . | . . . Reused . | . . . Traps Extracted . | . . . Installed . | . . . Triggered . | . . . Machines | -11 -10 -9 ---------- Run | Yrd Mat Mat Machines Disabled 2 | . . 2 Max in Single Turn 1 | . . 1 Machines Repaired . | . . . Machines Dismantled . | . . . Machines Sabotaged . | . . . Overloaded Fab Kills . | . . . Hacking | -11 -10 -9 --------- Run | Yrd Mat Mat Machines Accessed 3 | . 2 1 Terminals 2 | . 1 1 Fabricators . | . . . Repair Stations . | . . . Recycling Units 1 | . 1 . Scanalyzers . | . . . Garrison Access . | . . . Total Hacks 4 | . 2 2 Successful 2 | . 2 . Failed 2 | . . 2 Catastrophic 1 | . . 1 Database Lockouts . | . . . Manual 2 | . . 2 Terminals 3 | . 1 2 Fabricators . | . . . Repair Stations . | . . . Recycling Units 1 | . 1 . Scanalyzers . | . . . Garrison Access . | . . . Terminal Hacks 1 | . 1 . Hauler Manifests 1 | . 1 . Fabricator Hacks . | . . . Repair Station Hacks . | . . . Recycling Unit Hacks 1 | . 1 . Report Inventory 1 | . 1 . Scanalyzer . | . . . Garrison Access Hacks . | . . . Unauthorized Hacks . | . . . Terminals . | . . . Fabricators . | . . . Repair Stations . | . . . Recycling Units . | . . . Scanalyzers . | . . . Garrison Access . | . . . Data Cores Recovered . | . . . Used . | . . . Hacking Detections 2 | . 1 1 Full Trace Events 1 | . . 1 Feedback Events . | . . . Feedback Blocked . | . . . Robot Schematics Acquired . | . . . Robots Built . | . . . Authchips . | . . . Time . | . . . Total Robot Build Rating . | . . . Part Schematics Acquired . | . . . Parts Built . | . . . Authchips . | . . . Time . | . . . Total Part Build Rating . | . . . Parts Repaired . | . . . Time . | . . . Parts Recycled . | . . . Recycled Matter . | . . . Retrieved Matter . | . . . Retrieved Components . | . . . Parts Scanalyzed . | . . . Part Schematics Acquired . | . . . Parts Damaged . | . . . Bothacking | -11 -10 -9 ------------ Run | Yrd Mat Mat Used RIF Installer . | . . . Robots Hacked . | . . . Non-combat . | . . . Combat . | . . . Robot Hacks Applied . | . . . Relay Couplers Released . | . . . Fabnet Peak Effective % . | . . . Robots Rewired . | . . . Allies Hacked . | . . . Hacks Repelled . | . . . Allies | -11 -10 -9 -------- Run | Yrd Mat Mat Total Allies . | . . . Largest Group . | . . . Highest-Rated Group . | . . . Highest-Rated Ally . | . . . Total Orders . | . . . Ally Attacks . | . . . Total Damage . | . . . Kills . | . . . Allies Corrupted . | . . . Allies Melted . | . . . Intel | -11 -10 -9 ------- Run | Yrd Mat Mat Robot Analysis Total . | . . . Derelict Logs Recovered . | . . . Drone Launches . | . . . Drone Recoveries . | . . . Exploration | -11 -10 -9 ------------- Run | Yrd Mat Mat Turns Passed 971 | 129 480 362 Spaces Moved 488 | 79 258 151 Core 8 | 8 . . Treads 480 | 71 258 151 Legs . | . . . Wheels . | . . . Hover . | . . . Flight . | . . . Fastest Speed 50 | 50 160 160 Average Speed 158 | 148 160 161 Slowest Speed 240 | 160 160 240 Overloaded Moves . | . . . Propulsion Burnouts . | . . . Robots Hopped . | . . . Cave-ins Triggered . | . . . Exploration Rate (%) 19 | 5 35 17 Regions Visited 2 Branch Regions . Pre-discovered Areas . | . . . Known Exits Taken . | . . . Unknown Exits Taken 2 | 1 1 . Scrap Searched . | . . . Spaces Dug . | . . . Terrain Destroyed . | . . . Melee . | . . . Projectile . | . . . AOE . | . . . Terrain Rammed . | . . . Walls Destroyed . | . . . Machines Disabled . | . . . Actions | -11 -10 -9 --------- Run | Yrd Mat Mat Total 609 | 88 308 213 Wait 48 | . 26 22 Move 486 | 78 257 151 Hop . | . . . Pick Up 11 | 3 8 . Fast Attach 9 | 5 1 3 Attach 2 | 1 . 1 Detach . | . . . Swap 6 | 1 3 2 Drop 2 | . 2 . Fire 43 | . 10 33 Melee . | . . . Ram . | . . . Kick . | . . . Crush 2 | . 1 1 Escape Stasis . | . . . Rewire . | . . . Trap . | . . . Miscellaneous . | . . . Route ------- -11/Scrapyard -10/Materials (discovered 2 exits: *Mat / [*Min]) -9/Materials (discovered 1 exit: [*Min]) History --------- Turn | Location | Event 5 | -11/Scrapyard | Discovered new exit (range 15) 130 | -11/Scrapyard | Entered Materials 328 | -10/Materials | Build established: Mutant 332 | -10/Materials | Discovered new exit (range 16) 428 | -10/Materials | Discovered new exit (range 9) 610 | -10/Materials | Entered another Materials area 610 | -9/Materials | Evolved 2 slots: Utility x2 749 | -9/Materials | Discovered new exit (range 13) 972 | -9/Materials | Self-destructed Last Messages --------------- 00917_ G-34 Mercenary destroyed. 00931_ Acquired 40 matter. 00934_ W-16 Scout sends out distress signal. 00934_ Acquired 40 matter. 00936_ Slammed into A-02 Transporter. 00938_ Acquired Prototype Ballistic Gun. 00938_ Identified Imp. Assault Rifle. 00938_ Heat Sink destroyed. 00939_ S-10 Pest destroyed. 00942_ R-06 Scavenger collects Aluminum Leg. 00947_ S-10 Pest destroyed. 00953_ Critical hit (Destroy). 00953_ Imp. Treads destroyed. 00954_ Atomic Centrifuge disabled. 00962_ G-34 Mercenary destroyed. 00962_ R-06 Scavenger collects Heat Sink. 00966_ Autogun destroyed. 00966_ R-06 Scavenger collects Ion Engine. 00970_ S-10 Pest destroyed. 00971_ Lgt. Treads destroyed. Map ----- +----------------------------------------------------+ | ?????????????????????????????????????????????????? | | ?????????????????????????????????????????????????? | | ?????????????????????????????????????????????????? | | ?????????????????????????????????????????????????? | | ?????????????????????????????????????????????????? | | ?????????????????????????????????????????????????? | | ?????????????????????????????????????????????????? | | ?????????????????????????????????????????????????? | | ?????????????????????????????????????????????????? | | ?????????????????????????????????????????????????? | | ?????????????????????????????????????????????????? | | ?????????????????????????????????????????????????? | | ?????????????????????????????????????????????????? | | ?????????????????????????????????????????????????? | | ?????????????????????????????????????????????????? | | ?########????????????????????????????????????????? | | #????????????????????????????????????????? | | "S #????????????????????????????????????????? | | """ #????????????????????????????????????????? | | "" #????????????????????????????????????????? | | #?????????????????????????????? ????????? | | #???????????????????????????? ""?????????? | | #######???????????????????? """????????? | | ######+## #?????????????#####= " ????? | | #### ###############*[s%* ????? | | % < %u r r @!*%g%[=[[ ????? | | #### ###############u=g%= """????????? | | ???###### #?????????????# """????????? | | ??????#####+###?????????????# """????????? | | ??????# #??????????????# ????????? | | ??????# #??????????????# ??????? | | ??????# """ #??????????????# ]!! ??????? | | ??????# """ #??????????????# ]! ??????? | | ??????# """ #?????????????? ]! ???????? | | ??????# #?????????????? ???????? | | ??????##+#####?????????????? ????????? | | ???????# #??????????????????#+######## ????????? | | ???????# #???????????????????????????? ??????????? | | ??????? ???????????????????????????????????????? | | ??????? #???????????????????????????????????????? | | ??????? #???????????????????????????????????????? | | ??????? #???????????????????????????????????????? | | ?????? #???????????????????????????????????????? | | ?????? #???????????????????????????????????????? | | ?????? ????????????????????????????????????????? | | ??????##+????????????????????????????????????????? | | ?????????????????????????????????????????????????? | | ?????????????????????????????????????????????????? | | ?????????????????????????????????????????????????? | | ?????????????????????????????????????????????????? | +----------------------------------------------------+ Best States ------------- Heat Dissipation 38 Energy Generation 10 Energy Capacity 250 Matter Stores 300 Matter Capacity 300 Sight Range 16 Terrain Scan Density 10 ECM Strength 1 Evasion (%) 40 Targeting Accuracy 6 Recoil Reduction 2 Item Schematics ----------------- None Robot Schematics ------------------ None Fabricated ------------ Nothing Alien Tech Used ----------------- None Achievements -------------- None Challenges ------------ None Game ------ Seed AlertInsulatedPenetrator Manual? 0 Play Time 00:07:27 Cumulative 16.4 hours Start 2024.09.07 @ 21:45:40 End 2024.09.08 @ 09:22:42 Sessions 3 Manual Loads 0 Difficulty Rogue Special Mode None Game No. 37 Rogue 37 Adventurer 0 Explorer 0 Win Type - Total 0 Types 0/0/0/0/0/0/0/0/0 Lore% 4 Gallery% 20 Achievement% 17 Wizard Run 0 Options --------- Layout 1 ASCII 0 Keyboard 1 Movement Numpad Keybinds 0 Fullscreen 1 Font 24/Smallcaps Map View 50x35 Zoom Use 0% Tactical HUD 1 Map Filters NONE Filters NONE Steam 1 RUN: eecb1095-5d34-4cbc-b8fb-961416cff547